[Event "*** Titled Tuesday Blitz"]
[Site "Chess.com"]
[Date "2021.03.30"]
[Round "5"]
[White "lacafi"]
[Black "Slovak_fighter2000"]
[Result "0-1"]
[WhiteElo "2218"]
[BlackElo "2488"]
[TimeControl "180+1"]
[EndTime "10:55:13 PDT"]
[Termination "Slovak_fighter2000 won on time"]

1. d4 {[%clk 0:03:00.9]} 1... Nf6 {[%clk 0:02:59.8]} 2. Nf3 {[%clk 0:03:00.9]}
2... g6 {[%clk 0:03:00]} 3. c4 {[%clk 0:03:00.7]} 3... Bg7 {[%clk 0:03:00.5]} 4.
Nc3 {[%clk 0:03:01.4]} 4... d6 {[%clk 0:03:00.7]} 5. e4 {[%clk 0:03:01.4]} 5...
O-O {[%clk 0:03:01]} 6. Be2 {[%clk 0:03:02.1]} 6... Bg4 {[%clk 0:03:00.9]} 7.
O-O {[%clk 0:03:01.2]} 7... Nfd7 {[%clk 0:03:00.7]} 8. Be3 {[%clk 0:02:54.7]}
8... Nc6 {[%clk 0:03:00.9]} 9. h3 {[%clk 0:02:52.2]} 9... Bxf3 {[%clk
0:03:01.1]} 10. Bxf3 {[%clk 0:02:52.7]} 10... e5 {[%clk 0:03:01.8]} 11. d5
{[%clk 0:02:50.3]} 11... Nd4 {[%clk 0:03:02.2]} 12. Bxd4 {[%clk 0:02:46.3]}
12... exd4 {[%clk 0:03:03.1]} 13. Ne2 {[%clk 0:02:45.6]} 13... Qf6 {[%clk
0:03:01.8]} 14. g3 {[%clk 0:02:20.1]} 14... c5 {[%clk 0:02:50.9]} 15. Bg2 {[%clk
0:02:00.3]} 15... a6 {[%clk 0:02:38.9]} 16. Qd3 {[%clk 0:01:52.9]} 16... Rab8
{[%clk 0:02:37.9]} 17. f4 {[%clk 0:01:51.2]} 17... b5 {[%clk 0:02:36.6]} 18. b3
{[%clk 0:01:38.1]} 18... bxc4 {[%clk 0:02:36]} 19. Qxc4 {[%clk 0:01:37.8]} 19...
a5 {[%clk 0:02:30.5]} 20. Rad1 {[%clk 0:01:34.2]} 20... Rb4 {[%clk 0:02:25.2]}
21. Qa6 {[%clk 0:01:32.3]} 21... a4 {[%clk 0:02:23.2]} 22. bxa4 {[%clk
0:01:24.9]} 22... c4 {[%clk 0:02:18.1]} 23. e5 {[%clk 0:01:06.4]} 23... dxe5
{[%clk 0:02:17.6]} 24. Qxf6 {[%clk 0:01:06.3]} 24... Bxf6 {[%clk 0:02:18.2]} 25.
fxe5 {[%clk 0:01:06.8]} 25... Bxe5 {[%clk 0:02:16.4]} 26. Nxd4 {[%clk
0:01:06.8]} 26... Rxa4 {[%clk 0:02:16.6]} 27. Nc6 {[%clk 0:00:31.7]} 27... Bxg3
{[%clk 0:02:06]} 28. Rd2 {[%clk 0:00:31]} 28... Bd6 {[%clk 0:01:30.3]} 29. Rc2
{[%clk 0:00:26.9]} 29... Rfa8 {[%clk 0:01:23.2]} 30. h4 {[%clk 0:00:19.8]} 30...
Kg7 {[%clk 0:01:11.3]} 31. h5 {[%clk 0:00:14.4]} 31... Nc5 {[%clk 0:00:51.5]}
32. Rcf2 {[%clk 0:00:09.6]} 32... f5 {[%clk 0:00:49.3]} 33. Rc2 {[%clk 0:00:06]}
33... Nd3 {[%clk 0:00:40.1]} 34. Rd1 {[%clk 0:00:02.6]} 34... Rxa2 {[%clk
0:00:36.6]} 35. Rxc4 {[%clk 0:00:02.2]} 35... Nb2 {[%clk 0:00:37.1]} 0-1

[Event "*** Titled Tuesday Blitz"]
[Site "Chess.com"]
[Date "2021.03.30"]
[Round "5"]
[White "Gnechko_Ruslan"]
[Black "SanchezKelvin"]
[Result "1-0"]
[WhiteElo "2466"]
[BlackElo "2608"]
[TimeControl "180+1"]
[EndTime "10:55:16 PDT"]
[Termination "Gnechko_Ruslan won by resignation"]

1. d4 {[%clk 0:03:00.9]} 1... Nf6 {[%clk 0:02:59.6]} 2. Nf3 {[%clk 0:03:00.9]}
2... c5 {[%clk 0:02:58.7]} 3. e3 {[%clk 0:03:00.5]} 3... g6 {[%clk 0:02:58]} 4.
Be2 {[%clk 0:02:59.6]} 4... Bg7 {[%clk 0:02:58.9]} 5. O-O {[%clk 0:03:00.1]}
5... O-O {[%clk 0:02:59.8]} 6. c4 {[%clk 0:02:58.8]} 6... d6 {[%clk 0:02:58.6]}
7. Nc3 {[%clk 0:02:57.3]} 7... Nc6 {[%clk 0:02:58.4]} 8. d5 {[%clk 0:02:56.7]}
8... Na5 {[%clk 0:02:58.2]} 9. a3 {[%clk 0:02:42.2]} 9... b6 {[%clk 0:02:16.9]}
10. Ra2 {[%clk 0:02:40.5]} 10... a6 {[%clk 0:02:12.7]} 11. b4 {[%clk 0:02:40.2]}
11... Nb7 {[%clk 0:02:11.4]} 12. Bb2 {[%clk 0:02:30.8]} 12... e6 {[%clk
0:02:08.1]} 13. e4 {[%clk 0:02:26.6]} 13... exd5 {[%clk 0:02:01.7]} 14. exd5
{[%clk 0:02:26.6]} 14... Bg4 {[%clk 0:01:59.9]} 15. Ba1 {[%clk 0:02:11.3]} 15...
cxb4 {[%clk 0:01:59.3]} 16. axb4 {[%clk 0:02:10.9]} 16... a5 {[%clk 0:01:59.7]}
17. bxa5 {[%clk 0:02:08.7]} 17... bxa5 {[%clk 0:01:58.2]} 18. Nd4 {[%clk
0:02:07.2]} 18... Bxe2 {[%clk 0:01:57.6]} 19. Qxe2 {[%clk 0:02:06.6]} 19... Re8
{[%clk 0:01:55.6]} 20. Qd2 {[%clk 0:02:00.3]} 20... Nc5 {[%clk 0:01:54.3]} 21.
Nc6 {[%clk 0:01:59.4]} 21... Qd7 {[%clk 0:01:39.6]} 22. h3 {[%clk 0:01:56.8]}
22... a4 {[%clk 0:01:31.9]} 23. Qc2 {[%clk 0:01:52.9]} 23... a3 {[%clk
0:01:13.9]} 24. Nb5 {[%clk 0:01:49.1]} 24... Ra4 {[%clk 0:01:01.1]} 25. Rxa3
{[%clk 0:01:43.7]} 25... Rxa3 {[%clk 0:01:00.8]} 26. Nxa3 {[%clk 0:01:44.6]}
26... Ra8 {[%clk 0:00:57.7]} 27. Nb5 {[%clk 0:01:44.6]} 27... Nh5 {[%clk
0:00:24.2]} 28. Bxg7 {[%clk 0:01:43.7]} 28... Kxg7 {[%clk 0:00:24.6]} 29. Re1
{[%clk 0:01:40.4]} 29... Re8 {[%clk 0:00:21.6]} 30. Qc3+ {[%clk 0:01:34.2]}
30... f6 {[%clk 0:00:20.5]} 31. Rxe8 {[%clk 0:01:31.5]} 31... Qxe8 {[%clk
0:00:20.8]} 32. Nxd6 {[%clk 0:01:32]} 32... Qe2 {[%clk 0:00:17.8]} 33. Qd4
{[%clk 0:01:21]} 33... Qe1+ {[%clk 0:00:16]} 34. Kh2 {[%clk 0:01:20.1]} 34...
Nb3 {[%clk 0:00:16.4]} 35. Qa7+ {[%clk 0:01:19.1]} 35... Kg8 {[%clk 0:00:11.4]}
36. Qb8+ {[%clk 0:01:16.9]} 36... Kg7 {[%clk 0:00:11.1]} 37. Qxb3 {[%clk
0:01:16.2]} 37... Nf4 {[%clk 0:00:08.8]} 38. Qb7+ {[%clk 0:01:10.7]} 38... Kh6
{[%clk 0:00:08.7]} 39. Nf7+ {[%clk 0:01:09.6]} 39... Kh5 {[%clk 0:00:09]} 40.
Qd7 {[%clk 0:00:54.1]} 40... f5 {[%clk 0:00:06.3]} 41. Qe7 {[%clk 0:00:50.4]}
41... Qxe7 {[%clk 0:00:05.4]} 42. Nxe7 {[%clk 0:00:51.3]} 1-0

[Event "*** Titled Tuesday Blitz"]
[Site "Chess.com"]
[Date "2021.03.30"]
[Round "5"]
[White "McCarthyStone"]
[Black "NateSolon"]
[Result "0-1"]
[WhiteElo "2417"]
[BlackElo "2565"]
[TimeControl "180+1"]
[EndTime "10:55:18 PDT"]
[Termination "NateSolon won on time"]

1. Nf3 {[%clk 0:03:00.9]} 1... d5 {[%clk 0:02:59.6]} 2. c4 {[%clk 0:02:59.1]}
2... e6 {[%clk 0:02:58.9]} 3. g3 {[%clk 0:02:58.7]} 3... Nf6 {[%clk 0:02:58.6]}
4. Bg2 {[%clk 0:02:59]} 4... Be7 {[%clk 0:02:58.6]} 5. O-O {[%clk 0:02:59.2]}
5... O-O {[%clk 0:02:58.5]} 6. b3 {[%clk 0:02:56]} 6... b6 {[%clk 0:02:54.4]} 7.
Bb2 {[%clk 0:02:51.7]} 7... c5 {[%clk 0:02:52.9]} 8. cxd5 {[%clk 0:02:50.2]}
8... Nxd5 {[%clk 0:02:52.5]} 9. d4 {[%clk 0:02:51.1]} 9... cxd4 {[%clk
0:02:47.2]} 10. Nxd4 {[%clk 0:02:45.7]} 10... Bb7 {[%clk 0:02:46]} 11. Nd2
{[%clk 0:02:41.5]} 11... Nd7 {[%clk 0:02:41.4]} 12. N2f3 {[%clk 0:02:31.8]}
12... Bf6 {[%clk 0:02:33.2]} 13. Rc1 {[%clk 0:02:19.7]} 13... Nc5 {[%clk
0:02:26.1]} 14. a3 {[%clk 0:02:01.7]} 14... Rc8 {[%clk 0:02:19.7]} 15. b4 {[%clk
0:02:01.7]} 15... Ne4 {[%clk 0:02:19.8]} 16. Qd3 {[%clk 0:01:53.3]} 16... Ng5
{[%clk 0:01:55.1]} 17. Nxg5 {[%clk 0:01:48.8]} 17... Bxg5 {[%clk 0:01:56]} 18.
f4 {[%clk 0:01:48.9]} 18... Be7 {[%clk 0:01:43.6]} 19. e4 {[%clk 0:01:48.2]}
19... Nf6 {[%clk 0:01:43.4]} 20. Rxc8 {[%clk 0:01:47.3]} 20... Qxc8 {[%clk
0:01:44.3]} 21. e5 {[%clk 0:01:41.2]} 21... Bxg2 {[%clk 0:01:40.9]} 22. Kxg2
{[%clk 0:01:37.4]} 22... Qb7+ {[%clk 0:01:33.8]} 23. Qf3 {[%clk 0:01:33.3]}
23... Nd5 {[%clk 0:01:33.5]} 24. Rc1 {[%clk 0:01:25.6]} 24... Rc8 {[%clk
0:01:29.7]} 25. Kf2 {[%clk 0:01:06]} 25... a5 {[%clk 0:01:25.5]} 26. f5 {[%clk
0:00:53.2]} 26... Bg5 {[%clk 0:01:21.2]} 27. Rxc8+ {[%clk 0:00:45.5]} 27... Qxc8
{[%clk 0:01:22.1]} 28. fxe6 {[%clk 0:00:45.2]} 28... fxe6 {[%clk 0:01:21.6]} 29.
Qg4 {[%clk 0:00:39.4]} 29... Be3+ {[%clk 0:01:18.4]} 30. Kg2 {[%clk 0:00:35]}
30... Bxd4 {[%clk 0:01:13.1]} 31. Bxd4 {[%clk 0:00:35.9]} 31... axb4 {[%clk
0:01:09.7]} 32. axb4 {[%clk 0:00:33.6]} 32... Nxb4 {[%clk 0:01:05.2]} 33. Kh3
{[%clk 0:00:05.9]} 33... Nd5 {[%clk 0:01:02.7]} 34. Qf3 {[%clk 0:00:04.3]} 34...
Qc4 {[%clk 0:00:57.6]} 35. Bf2 {[%clk 0:00:03.7]} 35... h6 {[%clk 0:00:46.8]}
36. g4 {[%clk 0:00:01.9]} 36... b5 {[%clk 0:00:40.4]} 37. Be3 {[%clk 0:00:01.9]}
37... Qd3 {[%clk 0:00:36.3]} 38. g5 {[%clk 0:00:01.6]} 38... Qxe3 {[%clk
0:00:36]} 0-1

[Event "*** Titled Tuesday Blitz"]
[Site "Chess.com"]
[Date "2021.03.30"]
[Round "5"]
[White "GMJustin"]
[Black "zurzan"]
[Result "1/2-1/2"]
[WhiteElo "2293"]
[BlackElo "1970"]
[TimeControl "180+1"]
[EndTime "10:55:18 PDT"]
[Termination "Game drawn by repetition"]

1. e4 {[%clk 0:02:55.2]} 1... Nf6 {[%clk 0:02:59.4]} 2. e5 {[%clk 0:02:54.6]}
2... Nd5 {[%clk 0:02:59.6]} 3. d4 {[%clk 0:02:54.9]} 3... d6 {[%clk 0:02:59.3]}
4. Nf3 {[%clk 0:02:54.7]} 4... g6 {[%clk 0:02:58.4]} 5. c4 {[%clk 0:02:36.8]}
5... Nb6 {[%clk 0:02:57.5]} 6. Nc3 {[%clk 0:02:31.7]} 6... Bg7 {[%clk
0:02:56.9]} 7. Bf4 {[%clk 0:02:24.7]} 7... O-O {[%clk 0:02:55.9]} 8. c5 {[%clk
0:02:22.3]} 8... dxc5 {[%clk 0:02:21]} 9. dxc5 {[%clk 0:02:23.2]} 9... Qxd1+
{[%clk 0:02:18]} 10. Rxd1 {[%clk 0:02:24.1]} 10... N6d7 {[%clk 0:02:17.7]} 11.
Nd5 {[%clk 0:02:07.5]} 11... Nxc5 {[%clk 0:01:56.4]} 12. Nxc7 {[%clk 0:01:49.5]}
12... Ne6 {[%clk 0:01:56]} 13. Nxa8 {[%clk 0:01:42.7]} 13... Nxf4 {[%clk
0:01:55.9]} 14. Nc7 {[%clk 0:01:41.8]} 14... Nc6 {[%clk 0:01:45.5]} 15. Nd5
{[%clk 0:00:54.4]} 15... Nxd5 {[%clk 0:01:35.1]} 16. Rxd5 {[%clk 0:00:55.3]}
16... Be6 {[%clk 0:01:35.6]} 17. Rb5 {[%clk 0:00:55]} 17... b6 {[%clk
0:01:21.7]} 18. b3 {[%clk 0:00:29.8]} 18... Rb8 {[%clk 0:00:35.2]} 19. Bc4
{[%clk 0:00:28.8]} 19... a6 {[%clk 0:00:35.3]} 20. Bxe6 {[%clk 0:00:23.7]} 20...
axb5 {[%clk 0:00:35.3]} 21. Bd7 {[%clk 0:00:22.2]} 21... Nxe5 {[%clk 0:00:34.3]}
22. Nxe5 {[%clk 0:00:21.2]} 22... Bxe5 {[%clk 0:00:34.8]} 23. Bxb5 {[%clk
0:00:21.1]} 23... Bc3+ {[%clk 0:00:34.4]} 24. Ke2 {[%clk 0:00:20.6]} 24... Rd8
{[%clk 0:00:34.1]} 25. Rd1 {[%clk 0:00:19.4]} 25... Rxd1 {[%clk 0:00:33.6]} 26.
Kxd1 {[%clk 0:00:19.7]} 26... Bd4 {[%clk 0:00:33.8]} 27. Ke2 {[%clk 0:00:19.9]}
27... e5 {[%clk 0:00:32.1]} 28. f3 {[%clk 0:00:18.9]} 28... f5 {[%clk 0:00:32]}
29. g4 {[%clk 0:00:18]} 29... Kg7 {[%clk 0:00:31.8]} 30. gxf5 {[%clk 0:00:17.4]}
30... gxf5 {[%clk 0:00:32.7]} 31. Bd7 {[%clk 0:00:17.3]} 31... Kf6 {[%clk
0:00:33.6]} 32. Bc8 {[%clk 0:00:16.5]} 32... Kg5 {[%clk 0:00:33.5]} 33. Bd7
{[%clk 0:00:16.5]} 33... Kf4 {[%clk 0:00:33.4]} 34. a4 {[%clk 0:00:15.5]} 34...
e4 {[%clk 0:00:32.6]} 35. fxe4 {[%clk 0:00:15.1]} 35... fxe4 {[%clk 0:00:33.5]}
36. Bc6 {[%clk 0:00:14.7]} 36... h5 {[%clk 0:00:32.8]} 37. h3 {[%clk 0:00:14.7]}
37... h4 {[%clk 0:00:32.8]} 38. Bb7 {[%clk 0:00:14.7]} 38... Bc5 {[%clk
0:00:29.2]} 39. Bc6 {[%clk 0:00:14.7]} 39... Bb4 {[%clk 0:00:29.2]} 40. Bb7
{[%clk 0:00:14.7]} 40... Ba5 {[%clk 0:00:29.1]} 41. Bc6 {[%clk 0:00:14.9]} 41...
Bb4 {[%clk 0:00:29.4]} 42. Bb7 {[%clk 0:00:15.3]} 42... Ba5 {[%clk 0:00:29.9]}
43. Bc6 {[%clk 0:00:15.7]} 43... Bb4 {[%clk 0:00:30.4]} 1/2-1/2

[Event "*** Titled Tuesday Blitz"]
[Site "Chess.com"]
[Date "2021.03.30"]
[Round "5"]
[White "rachidhuilda"]
[Black "Chopper1905"]
[Result "0-1"]
[WhiteElo "2292"]
[BlackElo "2914"]
[TimeControl "180+1"]
[EndTime "10:55:20 PDT"]
[Termination "Chopper1905 won on time"]

1. d4 {[%clk 0:03:00.9]} 1... Nf6 {[%clk 0:02:57.9]} 2. Bg5 {[%clk 0:02:59.3]}
2... e6 {[%clk 0:02:52]} 3. e4 {[%clk 0:02:48.7]} 3... h6 {[%clk 0:02:50.3]} 4.
Bxf6 {[%clk 0:02:47.7]} 4... Qxf6 {[%clk 0:02:32.1]} 5. c3 {[%clk 0:02:47.2]}
5... d6 {[%clk 0:02:31.1]} 6. Nd2 {[%clk 0:02:44.2]} 6... Nd7 {[%clk 0:02:30.9]}
7. Bd3 {[%clk 0:02:43.7]} 7... b6 {[%clk 0:02:26]} 8. Ne2 {[%clk 0:02:38.5]}
8... g5 {[%clk 0:02:23.9]} 9. Ng3 {[%clk 0:02:37.4]} 9... Bb7 {[%clk 0:02:21.9]}
10. a4 {[%clk 0:02:23.5]} 10... a6 {[%clk 0:02:07.6]} 11. Qe2 {[%clk 0:02:21.1]}
11... Qe7 {[%clk 0:01:58.6]} 12. b4 {[%clk 0:02:10.7]} 12... Nf6 {[%clk
0:01:50.9]} 13. O-O {[%clk 0:02:01.9]} 13... Bg7 {[%clk 0:01:42.6]} 14. f4
{[%clk 0:01:46.7]} 14... gxf4 {[%clk 0:01:36.1]} 15. Rxf4 {[%clk 0:01:45.9]}
15... h5 {[%clk 0:01:36.7]} 16. Raf1 {[%clk 0:01:43.2]} 16... h4 {[%clk
0:01:35.1]} 17. Nh1 {[%clk 0:01:30.5]} 17... e5 {[%clk 0:01:14]} 18. R4f3 {[%clk
0:00:57.6]} 18... exd4 {[%clk 0:01:04.7]} 19. cxd4 {[%clk 0:00:55.8]} 19... Ng4
{[%clk 0:00:48.6]} 20. Rxf7 {[%clk 0:00:46.9]} 20... Bxd4+ {[%clk 0:00:45.8]}
21. Nf2 {[%clk 0:00:38.9]} 21... Qxf7 {[%clk 0:00:33.3]} 22. Qxg4 {[%clk
0:00:38.5]} 22... Rg8 {[%clk 0:00:25.1]} 23. Qxh4 {[%clk 0:00:37.7]} 23... Qg6
{[%clk 0:00:15]} 24. Qh3 {[%clk 0:00:31.1]} 24... Bc8 {[%clk 0:00:14.3]} 25. Qf3
{[%clk 0:00:16.5]} 25... Bg4 {[%clk 0:00:12.8]} 26. Qf4 {[%clk 0:00:13.6]} 26...
O-O-O {[%clk 0:00:11.3]} 27. Kh1 {[%clk 0:00:13.6]} 27... Be2 {[%clk 0:00:09.4]}
0-1

[Event "*** Titled Tuesday Blitz"]
[Site "Chess.com"]
[Date "2021.03.30"]
[Round "5"]
[White "dpruess"]
[Black "erdni1993"]
[Result "0-1"]
[WhiteElo "2341"]
[BlackElo "2513"]
[TimeControl "180+1"]
[EndTime "10:55:21 PDT"]
[Termination "erdni1993 won on time"]

1. e4 {[%clk 0:03:00.9]} 1... c5 {[%clk 0:03:00.1]} 2. Nf3 {[%clk 0:03:00.6]}
2... e6 {[%clk 0:03:01]} 3. d4 {[%clk 0:03:00.8]} 3... cxd4 {[%clk 0:03:01.5]}
4. Nxd4 {[%clk 0:03:01.7]} 4... Nc6 {[%clk 0:03:00]} 5. Nc3 {[%clk 0:03:01.5]}
5... Qc7 {[%clk 0:03:00.6]} 6. Be3 {[%clk 0:03:00.2]} 6... a6 {[%clk 0:02:59.7]}
7. Qf3 {[%clk 0:02:59.9]} 7... Nf6 {[%clk 0:02:56.5]} 8. O-O-O {[%clk
0:02:59.2]} 8... Bb4 {[%clk 0:02:56.2]} 9. Nxc6 {[%clk 0:02:13.1]} 9... bxc6
{[%clk 0:02:53]} 10. Bf4 {[%clk 0:01:28.3]} 10... Qa5 {[%clk 0:02:35.9]} 11. Bc4
{[%clk 0:01:13.2]} 11... O-O {[%clk 0:02:09.3]} 12. Bd6 {[%clk 0:01:05.5]} 12...
Bxd6 {[%clk 0:01:54.6]} 13. Rxd6 {[%clk 0:01:06.4]} 13... Rb8 {[%clk 0:01:54.6]}
14. Rhd1 {[%clk 0:00:57.6]} 14... Qb4 {[%clk 0:01:47.3]} 15. Bb3 {[%clk
0:00:56.7]} 15... a5 {[%clk 0:01:47.5]} 16. g4 {[%clk 0:00:40.4]} 16... Kh8
{[%clk 0:01:33.2]} 17. g5 {[%clk 0:00:39.8]} 17... Nd5 {[%clk 0:01:29.7]} 18.
exd5 {[%clk 0:00:18.8]} 18... Qxd6 {[%clk 0:01:28.5]} 19. dxe6 {[%clk 0:00:19]}
19... Qe5 {[%clk 0:01:22.7]} 20. exd7 {[%clk 0:00:18.8]} 20... Qxg5+ {[%clk
0:01:14.3]} 21. Kb1 {[%clk 0:00:18.8]} 21... Bb7 {[%clk 0:01:02.4]} 22. Ne4
{[%clk 0:00:18.6]} 22... Qe7 {[%clk 0:00:56.6]} 23. Nd6 {[%clk 0:00:17.1]} 23...
Qxd7 {[%clk 0:00:32.7]} 24. Nxf7+ {[%clk 0:00:17.1]} 24... Rxf7 {[%clk
0:00:32.7]} 25. Bxf7 {[%clk 0:00:14.4]} 25... Qe7 {[%clk 0:00:30.9]} 26. Bb3
{[%clk 0:00:13.5]} 26... c5 {[%clk 0:00:27.5]} 27. Qe3 {[%clk 0:00:12.4]} 27...
Qc7 {[%clk 0:00:22.7]} 28. Qc3 {[%clk 0:00:08.5]} 28... Rf8 {[%clk 0:00:20.2]}
29. a4 {[%clk 0:00:08.3]} 29... Rxf2 {[%clk 0:00:19]} 30. Qe3 {[%clk 0:00:05.6]}
30... Rf8 {[%clk 0:00:18.8]} 31. Qg5 {[%clk 0:00:04.7]} 31... c4 {[%clk
0:00:17.9]} 32. Ba2 {[%clk 0:00:04.3]} 32... Be4 {[%clk 0:00:18]} 33. Qe3 {[%clk
0:00:03]} 33... Qe5 {[%clk 0:00:17.4]} 0-1

[Event "*** Titled Tuesday Blitz"]
[Site "Chess.com"]
[Date "2021.03.30"]
[Round "5"]
[White "Mili_Brizzi"]
[Black "Alliswell998"]
[Result "1-0"]
[WhiteElo "2309"]
[BlackElo "2608"]
[TimeControl "180+1"]
[EndTime "10:55:21 PDT"]
[Termination "Mili_Brizzi won by checkmate"]

1. e4 {[%clk 0:03:00.9]} 1... c5 {[%clk 0:03:00.9]} 2. Nf3 {[%clk 0:02:59.1]}
2... d6 {[%clk 0:03:01.8]} 3. d3 {[%clk 0:02:58.8]} 3... Nf6 {[%clk 0:03:02]} 4.
g3 {[%clk 0:02:59.1]} 4... a6 {[%clk 0:03:02.1]} 5. Bg2 {[%clk 0:02:59.3]} 5...
b5 {[%clk 0:03:02.6]} 6. O-O {[%clk 0:02:59.5]} 6... Bb7 {[%clk 0:03:02.1]} 7.
Nh4 {[%clk 0:02:51]} 7... Nc6 {[%clk 0:03:00.6]} 8. f4 {[%clk 0:02:51]} 8... e6
{[%clk 0:02:54.7]} 9. Nf3 {[%clk 0:02:45.2]} 9... Be7 {[%clk 0:02:51.7]} 10. Be3
{[%clk 0:02:45.3]} 10... O-O {[%clk 0:02:49.5]} 11. Nc3 {[%clk 0:02:45.4]} 11...
Rc8 {[%clk 0:02:46.2]} 12. Kh1 {[%clk 0:02:45.1]} 12... Qc7 {[%clk 0:02:43.2]}
13. Ne2 {[%clk 0:02:43.7]} 13... Rfd8 {[%clk 0:02:36.7]} 14. h3 {[%clk
0:02:42.7]} 14... Bf8 {[%clk 0:02:32.7]} 15. g4 {[%clk 0:02:42.5]} 15... d5
{[%clk 0:02:21.6]} 16. e5 {[%clk 0:02:42.2]} 16... Nd7 {[%clk 0:02:21.5]} 17.
Qe1 {[%clk 0:02:40.4]} 17... Nb4 {[%clk 0:02:18]} 18. Qh4 {[%clk 0:02:11.1]}
18... Nxc2 {[%clk 0:02:14]} 19. Bd2 {[%clk 0:01:53.7]} 19... Nxa1 {[%clk
0:02:11.7]} 20. Rxa1 {[%clk 0:01:53.3]} 20... d4 {[%clk 0:02:07.9]} 21. Ng3
{[%clk 0:01:50.4]} 21... Re8 {[%clk 0:01:58.5]} 22. Nh5 {[%clk 0:01:49.4]} 22...
Be7 {[%clk 0:01:57.6]} 23. g5 {[%clk 0:01:49.1]} 23... Nf8 {[%clk 0:01:56.1]}
24. Rg1 {[%clk 0:01:42.8]} 24... Ng6 {[%clk 0:01:55.2]} 25. Qg4 {[%clk
0:01:42.1]} 25... c4 {[%clk 0:01:51.7]} 26. Nxd4 {[%clk 0:01:34.4]} 26... cxd3
{[%clk 0:01:46.6]} 27. h4 {[%clk 0:01:02.7]} 27... Bxg2+ {[%clk 0:01:42.1]} 28.
Rxg2 {[%clk 0:01:02.5]} 28... Qc4 {[%clk 0:01:36.5]} 29. Nf3 {[%clk 0:00:37.3]}
29... Qxa2 {[%clk 0:01:15.9]} 30. Nf6+ {[%clk 0:00:34.1]} 30... gxf6 {[%clk
0:01:06.8]} 31. gxf6 {[%clk 0:00:34.3]} 31... Bf8 {[%clk 0:00:57]} 32. h5 {[%clk
0:00:34.3]} 32... Qd5 {[%clk 0:00:50.1]} 33. Ng5 {[%clk 0:00:18.2]} 33... Rc2
{[%clk 0:00:46]} 34. hxg6 {[%clk 0:00:15.1]} 34... Rec8 {[%clk 0:00:16]} 35.
gxh7+ {[%clk 0:00:13.3]} 35... Kh8 {[%clk 0:00:13.3]} 36. Nxf7+ {[%clk
0:00:13.5]} 36... Kxh7 {[%clk 0:00:13.8]} 37. Qg6# {[%clk 0:00:13.7]} 1-0

[Event "*** Titled Tuesday Blitz"]
[Site "Chess.com"]
[Date "2021.03.30"]
[Round "5"]
[White "WonderChampion"]
[Black "Godzillator"]
[Result "1-0"]
[WhiteElo "2116"]
[BlackElo "2291"]
[TimeControl "180+1"]
[EndTime "10:55:21 PDT"]
[Termination "WonderChampion won by resignation"]

1. d4 {[%clk 0:03:00.9]} 1... d5 {[%clk 0:01:59.2]} 2. Bg5 {[%clk 0:02:58.9]}
2... Nd7 {[%clk 0:01:58.5]} 3. Nd2 {[%clk 0:02:54.8]} 3... Ngf6 {[%clk
0:01:58.6]} 4. Ngf3 {[%clk 0:02:52.6]} 4... c6 {[%clk 0:01:58.8]} 5. e3 {[%clk
0:02:51.7]} 5... Qb6 {[%clk 0:01:58.9]} 6. Qc1 {[%clk 0:02:50.8]} 6... h6 {[%clk
0:01:53.5]} 7. Bf4 {[%clk 0:02:48.2]} 7... g6 {[%clk 0:01:50]} 8. Ne5 {[%clk
0:02:43.9]} 8... Nxe5 {[%clk 0:01:48.3]} 9. Bxe5 {[%clk 0:02:44.8]} 9... Bg7
{[%clk 0:01:48.6]} 10. Bd3 {[%clk 0:02:43.6]} 10... O-O {[%clk 0:01:48.2]} 11.
O-O {[%clk 0:02:43.6]} 11... Be6 {[%clk 0:01:41.5]} 12. c4 {[%clk 0:02:33.3]}
12... Rac8 {[%clk 0:01:38.6]} 13. c5 {[%clk 0:02:32.4]} 13... Qd8 {[%clk
0:01:38.6]} 14. b4 {[%clk 0:02:29.7]} 14... a6 {[%clk 0:01:38.1]} 15. a4 {[%clk
0:02:24.9]} 15... Qd7 {[%clk 0:01:38.3]} 16. Rb1 {[%clk 0:02:23.2]} 16... Bf5
{[%clk 0:01:37.8]} 17. Bxf5 {[%clk 0:02:21.5]} 17... Qxf5 {[%clk 0:01:37.9]} 18.
b5 {[%clk 0:02:22.4]} 18... axb5 {[%clk 0:01:37.3]} 19. axb5 {[%clk 0:02:23.3]}
19... Ng4 {[%clk 0:01:36.7]} 20. Bxg7 {[%clk 0:02:22]} 20... Kxg7 {[%clk
0:01:36.5]} 21. h3 {[%clk 0:02:20.5]} 21... Nf6 {[%clk 0:01:35.7]} 22. bxc6
{[%clk 0:02:19.2]} 22... bxc6 {[%clk 0:01:36]} 23. Nf3 {[%clk 0:02:18]} 23...
Nd7 {[%clk 0:01:28.1]} 24. Qc3 {[%clk 0:02:16.5]} 24... e5 {[%clk 0:01:27.8]}
25. Nxe5 {[%clk 0:02:14.5]} 25... Nxe5 {[%clk 0:01:27.4]} 26. dxe5 {[%clk
0:02:15.4]} 26... Kh7 {[%clk 0:01:25.9]} 27. f4 {[%clk 0:02:14.3]} 27... Qe4
{[%clk 0:01:20.5]} 28. Qd4 {[%clk 0:02:12.7]} 28... Qc2 {[%clk 0:01:18.3]} 29.
Rfc1 {[%clk 0:02:10]} 29... Qa2 {[%clk 0:01:17.9]} 30. Rb6 {[%clk 0:02:07.9]}
30... Rfe8 {[%clk 0:01:06.3]} 31. Rb7 {[%clk 0:01:56.8]} 31... Kg8 {[%clk
0:01:04.4]} 32. Rcb1 {[%clk 0:01:47.6]} 32... Qe2 {[%clk 0:01:00.1]} 33. Kh2
{[%clk 0:01:45.9]} 33... g5 {[%clk 0:00:53.7]} 34. fxg5 {[%clk 0:01:44.6]} 34...
hxg5 {[%clk 0:00:53]} 35. R1b2 {[%clk 0:01:24.7]} 35... Qh5 {[%clk 0:00:49.5]}
36. Rf2 {[%clk 0:01:21]} 36... Rf8 {[%clk 0:00:43.4]} 37. e6 {[%clk 0:01:20.4]}
37... Qg6 {[%clk 0:00:22]} 38. exf7+ {[%clk 0:01:19.6]} 38... Kh7 {[%clk
0:00:20.4]} 39. Rf6 {[%clk 0:01:15.1]} 39... Qg7 {[%clk 0:00:20.6]} 40. Qd3+
{[%clk 0:01:11.9]} 40... Kh8 {[%clk 0:00:20.1]} 41. Rf5 {[%clk 0:01:08.3]} 41...
Ra8 {[%clk 0:00:16.1]} 42. Qe2 {[%clk 0:01:07.3]} 42... Ra4 {[%clk 0:00:15.2]}
43. Qh5+ {[%clk 0:01:06.2]} 43... Qh7 {[%clk 0:00:14.2]} 44. Rxg5 {[%clk
0:00:58.8]} 44... Qxh5 {[%clk 0:00:12.9]} 45. Rxh5+ {[%clk 0:00:59.7]} 45... Kg7
{[%clk 0:00:13.6]} 46. Rf5 {[%clk 0:00:58.8]} 46... Re4 {[%clk 0:00:12.6]} 47.
Rc7 {[%clk 0:00:54.1]} 47... Re6 {[%clk 0:00:12.6]} 48. Kg3 {[%clk 0:00:52.7]}
48... Rxf7 {[%clk 0:00:12.9]} 49. Rfxf7+ {[%clk 0:00:51.6]} 1-0